fUSD/lending_fUSD_20260413
["ID","MTS","AMOUNT","RATE_DAILY","PERIOD"]
[420396740,1776079902442,600.0,0.00030136,120]
[420396741,1776079902536,600.0,0.00030136,120]
[420396742,1776079903007,600.0,0.00030136,120]
[420396743,1776079903502,600.0,0.00030136,120]
[420396744,1776079903953,600.0,0.00030136,120]
[420396745,1776079904389,600.0,0.00030136,120]
[420396746,1776079904880,600.0,0.00030136,120]
[420396747,1776079905234,600.0,0.00030136,120]
[420396748,1776079905716,600.0,0.00030136,120]
[420396749,1776079906162,600.0,0.00030136,120]
[420396750,1776079906571,600.0,0.00030136,120]
[420396751,1776079907011,600.0,0.00030136,120]
[420396752,1776079907431,600.0,0.00030136,120]
[420396753,1776079907964,600.0,0.00030136,120]
[420396754,1776079908402,600.0,0.00030136,120]
[420396755,1776079908845,600.0,0.00030136,120]
[420396756,1776079909291,600.0,0.00030136,120]
[420396757,1776079909711,600.0,0.00030136,120]
[420396758,1776079910190,600.0,0.00030136,120]
[420396759,1776079910674,600.0,0.00030136,120]
[420396760,1776079911085,600.0,0.00030136,120]
[420396761,1776079911574,600.0,0.00030136,120]
[420396762,1776079913440,600.0,0.00030136,120]
[420396763,1776079913551,600.0,0.00030136,120]
[420396764,1776079913648,600.0,0.00030136,120]
[420396765,1776079913737,600.0,0.00030136,120]
[420396766,1776079913861,600.0,0.00030136,120]
[420396767,1776079914316,600.0,0.00030136,120]
[420396768,1776079914948,600.0,0.00030136,120]
[420396769,1776079915374,600.0,0.00030136,120]
[420396770,1776079915790,600.0,0.00030136,120]
[420396771,1776079916865,600.0,0.00030136,120]
[420396772,1776079917204,600.0,0.00030136,120]
[420396773,1776079917669,600.0,0.00030136,120]
[420396774,1776079918128,600.0,0.00030136,120]
[420396775,1776079918559,600.0,0.00030136,120]
[420396776,1776079919754,600.0,0.00030136,120]
[420396777,1776079919856,600.0,0.00030136,120]
[420396778,1776079920450,600.0,0.00030136,120]
[420396779,1776079920634,600.0,0.00030136,120]
[420396780,1776079920805,600.0,0.00030136,120]
[420396781,1776079921173,600.0,0.00030136,120]
[420396782,1776079921614,600.0,0.00030136,120]
[420396783,1776079922085,600.0,0.00030136,120]
[420396784,1776079922538,600.0,0.00030136,120]
[420396785,1776079923030,600.0,0.00030136,120]
[420396786,1776079924489,600.0,0.00030136,120]
[420396787,1776079925827,600.0,0.00030136,120]
[420396788,1776079926248,600.0,0.00030136,120]
[420396789,1776079926594,600.0,0.00030136,120]
[420396790,1776079926926,600.0,0.00030136,120]
[420396791,1776079927107,600.0,0.00030136,120]
[420396792,1776079927906,600.0,0.00030136,120]
[420396793,1776079928135,600.0,0.00030136,120]
[420396794,1776079928592,600.0,0.00030136,120]
[420396795,1776079929275,600.0,0.00030136,120]
[420396796,1776079930095,600.0,0.00030136,120]
[420396797,1776079930224,600.0,0.00030136,120]
[420396798,1776079930670,600.0,0.00030136,120]
[420396799,1776079931123,600.0,0.00030136,120]
[420396800,1776079931763,600.0,0.00030136,120]
[420396801,1776079932255,600.0,0.00030136,120]
[420396802,1776079932658,600.0,0.00030136,120]
[420396803,1776079933112,600.0,0.00030136,120]
[420396804,1776079933633,600.0,0.00030136,120]
[420396805,1776079933974,600.0,0.00030136,120]
[420396806,1776079935478,600.0,0.00030136,120]
[420396807,1776079935646,600.0,0.00030136,120]
[420396808,1776079935757,600.0,0.00030136,120]
[420396809,1776079935974,600.0,0.00030136,120]
[420396810,1776079936241,600.0,0.00030136,120]
[420396811,1776079937262,600.0,0.00030136,120]
[420396812,1776079937683,600.0,0.00030136,120]
[420396813,1776079940967,1860.3,0.00030082,120]
[420396814,1776079950742,1893.890685,0.0002692,120]
[420396816,1776080005813,692.996392,0.0002689,120]
[420396817,1776080037476,299.7464665,0.00030136,120]
[420396818,1776080044112,265.222048,0.00026497,120]
[420396819,1776080097993,1425.40385,0.00026121,120]
[420396820,1776080102383,973.399118,0.00026121,120]
[420396821,1776080190566,174.648813,0.00026121,120]
[420396822,1776080195788,693.875559,0.00026121,120]
[420396823,1776080252380,4636.98,0.00030137,120]
[420396824,1776080284398,253.748977,0.00025608,120]
[420396825,1776080312437,724.38540528,0.00026137,120]
[420396826,1776080367610,286.805097,0.00025608,120]
[420396827,1776080397257,419.985062,0.00025608,120]
[420396828,1776080436597,612.07,0.00029452,120]
[420396829,1776080456427,500.0,0.00030136,120]
[420396830,1776080456926,414.438008,0.00025202,120]
[420396831,1776080456979,500.0,0.00030136,120]
[420396832,1776080457458,500.0,0.00030136,120]
[420396833,1776080505072,207.219004,0.00025096,120]
[420396834,1776080514556,2712.0,0.00013967,2]
[420396835,1776080515904,2288.01,0.00014967,2]
[420396836,1776080515945,423.99,0.00014967,2]
[420396837,1776080517250,2712.0,0.00015967,2]
[420396838,1776080518511,2712.0,0.00016967,2]
[420396839,1776080519815,2712.0,0.00017967,2]
[420396840,1776080526442,1309.05,0.00030082,120]
[420396841,1776080527062,1309.05,0.00030082,120]
[420396842,1776080558514,712.219987,0.00024435,120]
[420396843,1776080644346,-2270.89181445,0.00018967,2]
[420396844,1776080663119,199.0,0.000185,2]
[420396845,1776080663352,198.0,0.000185,2]
[420396846,1776080690990,251.63236447,0.00011966,2]
[420396847,1776080696277,-458.2263711,0.00018967,2]
[420396848,1776080696325,-336.0,0.00018967,2]
[420396849,1776080696369,-150.0,0.00019281,8]
[420396850,1776080699344,-1620.11244076,0.00019575,2]
[420396851,1776080702191,-1759.78511848,0.00019575,2]
[420396852,1776080702247,-281.27288377,0.000199,2]
[420396853,1776080705235,-2270.01,0.0002,2]
[420396854,1776080708321,-459.99,0.0002,2]
[420396855,1776080708360,-250.0,0.00020863,2]
[420396856,1776080708396,-1200.0,0.00020999,2]
[420396857,1776080708429,-300.0,0.00020999,2]
[420396858,1776080713500,1263.0,7.944e-05,2]
[420396859,1776080715878,1263.0,8.944e-05,2]
[420396860,1776080716089,1263.0,9.944e-05,2]
[420396861,1776080717562,1211.01,0.00010944,2]
[420396862,1776080717613,51.99,0.00010944,2]
[420396863,1776080718845,1263.0,0.00011944,2]
[420396864,1776080720129,1273.68709112,0.00012944,2]
[420396866,1776080742142,2500.0,0.00030137,120]
[420396867,1776080779755,250.0,0.00013,2]
[420396868,1776080780182,260.723388,0.00023858,120]
[420396869,1776080785672,282.104154,0.0002354,120]
[420396870,1776080800059,1300.51780812,0.00018,2]
[420396871,1776080838575,258.0,0.00029768,120]
[420396872,1776080849402,162.0,0.000301,120]
[420396873,1776080864045,300.0,0.00029527,120]
[420396874,1776080864858,300.0,0.00029527,120]
[420396875,1776080865773,224.0,0.00029527,120]
[420396876,1776080882512,385.646623,0.0002354,120]
[420396877,1776080927911,192.823312,0.0002354,120]
[420396878,1776080937979,-150.0,0.0002024,8]
[420396879,1776080938017,-1600.310021,0.00020342,2]
[420396880,1776080938062,-514.0,0.00020445,2]
[420396881,1776080938098,-250.0,0.00020548,2]
[420396882,1776080938138,-295.0,0.00020548,2]
[420396883,1776080938177,-187.51525584,0.00020795,2]
[420396884,1776080938215,-150.0,0.00020895,8]
[420396885,1776080938251,-976.35944632,0.00021,2]
[420396886,1776080938301,-1753.64055368,0.00021,2]
[420396887,1776080938332,-1023.04767181,0.00021,30]
[420396888,1776080938370,-150.0,0.00021169,8]
[420396889,1776080938409,-1023.04767181,0.00021209,30]
[420396890,1776080938445,-1023.04767181,0.00021209,30]
[420396891,1776080938500,-300.0,0.00021298,2]
[420396892,1776080938533,-300.0,0.00021298,2]
[420396893,1776080938564,-1023.04767181,0.00021299,30]
[420396894,1776080938597,-300.0,0.00021299,2]
[420396895,1776080938630,-150.0,0.000213,2]
[420396896,1776080938664,-1264.87,0.000213,2]
[420396897,1776080938715,-0.02,0.000213,2]
[420396898,1776080938772,-0.04,0.000213,2]
[420396899,1776080940069,-4871.68026372,0.000213,2]
[420396900,1776080940097,-5128.24973628,0.000213,2]
[420396901,1776080940115,-4871.72026372,0.000213,2]
[420396902,1776080940294,-4871.74026372,0.000213,2]
[420396903,1776080940335,-256.52947256,0.000213,2]
[420396904,1776080940373,-150.0,0.00021443,8]
[420396905,1776080940405,-2436.63171256,0.00021532,2]
[420396906,1776080940447,-600.0,0.00021532,2]
[420396907,1776080940486,-187.51525584,0.00021717,2]
[420396908,1776080940523,-200.0,0.00021873,2]
[420396909,1776080940559,-201.98,0.0002189,2]
[420396910,1776080940754,-2730.0,0.00022,2]
[420396911,1776080940804,-540.01,0.00022097,2]
[420396912,1776080941180,-1651.21659064,0.00022097,2]
[420396913,1776080941202,-1808.77340936,0.00022097,2]
[420396914,1776080941218,-164.5696,0.000221,2]
[420396915,1776080941238,-1500.0,0.0002212,2]
[420396916,1776080941250,-526.65699064,0.00022292,2]
[420396917,1776080945943,-300.0,0.00021299,2]
[420396918,1776080945973,-51.55225244,0.00022292,2]
[420396919,1776080946001,-500.0,0.00022292,2]
[420396920,1776080946028,-500.0,0.00022347,2]
[420396921,1776080946058,-1411.51,0.00022359,2]
[420396922,1776080946087,-500.0,0.00022402,2]
[420396923,1776080946114,-200.0,0.00022433,2]
[420396924,1776080946146,-500.0,0.00022457,2]
[420396925,1776080946177,-250.0,0.00022489,2]
[420396926,1776080946203,-500.0,0.00022493,2]
[420396927,1776080946235,-15.81549512,0.00022503,2]
[420396928,1776080946457,-542.25450488,0.00022503,2]
[420396929,1776080949438,-500.0,0.00022512,2]
[420396930,1776080949473,-500.0,0.00022567,2]
[420396931,1776080949505,-172.07088138,0.000226,2]
[420396932,1776080960391,162.0,0.000218,2]
[420396933,1776080967714,578.0,0.0002262,2]
[420396934,1776080973859,579.63612453,0.00017152,2]
[420396935,1776080976117,1057.4516,0.0002262,2]
[420396936,1776080983778,-500.0,0.0002262,2]
[420396937,1776080983808,-500.0,0.0002262,2]
[420396938,1776080983842,-500.0,0.0002262,2]
[420396939,1776080983876,-500.0,0.0002262,2]
[420396940,1776080983908,-500.0,0.0002262,2]
[420396941,1776080983940,-500.0,0.0002262,2]
[420396942,1776080983982,-500.0,0.0002262,2]
[420396943,1776080986718,153.0,0.0003,120]
[420396944,1776080993344,1455.011119,0.00022507,2]
[420396946,1776081029379,578.0,0.00022622,2]
[420396953,1776081033893,-500.0,0.00022622,2]
[420396954,1776081033913,-187.51525584,0.00022638,2]
[420396955,1776081033925,-327.58,0.00022644,2]
[420396956,1776081033935,-4000.0,0.0002265,2]
[420396957,1776081033947,-163.47,0.00022656,2]
[420396958,1776081033957,-500.0,0.00022677,2]
[420396959,1776081033977,-500.0,0.00022705,2]
[420396960,1776081033988,-533.4650583,0.00022732,2]
[420396961,1776081033997,-150.0,0.000228,2]
[420396962,1776081034019,-300.0,0.00022851,2]
[420396963,1776081034032,-1200.0,0.00022851,2]
[420396964,1776081034043,-3278.77,0.00022852,2]
[420396965,1776081034067,-500.0,0.0002286,2]
[420396966,1776081034086,-500.0,0.0002286,2]
[420396967,1776081034102,-200.0,0.00022873,2]
[420396968,1776081034113,-1116.10461429,0.00022873,2]
[420396969,1776081034135,-8934.29,0.00022887,2]
[420396970,1776081034152,-500.0,0.000229,2]
[420396971,1776081034162,-600.0,0.00022984,2]
[420396972,1776081034194,-281.38840685,0.00022999,2]
[420396973,1776081034219,-2730.0,0.00023,2]
[420396974,1776081034239,-150.0,0.00023032,2]
[420396975,1776081034254,-1852.42,0.00023066,2]
[420396976,1776081034263,-201.98,0.00023106,2]
[420396977,1776081034275,-300.0,0.0002316,2]
[420396978,1776081034311,-5000.0,0.00023169,2]
[420396979,1776081034320,-501.44544862,0.000232,2]
[420396980,1776081034338,-4000.0,0.00023202,2]
[420396981,1776081034347,-2000.0,0.00023336,2]
[420396982,1776081034356,-1000.0,0.00023408,2]
[420396983,1776081034366,-1000.0,0.00023408,2]
[420396984,1776081034378,-20323.06,0.00023416,2]
[420396985,1776081034389,-270.21301642,0.00023429,2]
[420396986,1776081034398,-7597.1,0.00023436,2]
[420396987,1776081034407,-1162.14,0.00023534,2]
[420396988,1776081034417,-351.0,0.0002354,2]
[420396989,1776081034426,-260.723389,0.0002354,14]
[420396990,1776081034437,-286.805097,0.0002354,14]
[420396991,1776081034445,-201.751911,0.0002354,14]
[420396992,1776081034455,-3635.84,0.00023578,2]
[420396993,1776081034465,-3951.16,0.00023578,2]
[420396994,1776081034474,-4897.18,0.00023578,2]
[420396995,1776081034487,-164.5682,0.000236,2]
[420396996,1776081034496,-3991.4641568,0.00023642,2]
[420396997,1776081034505,-381.0765805,0.00023642,2]
[420396998,1776081034514,-528.7258,0.00023751,2]
[420396999,1776081034525,-4000.0,0.00023755,2]
[420397000,1776081034534,-1000.0,0.00023812,2]
[420397001,1776081034544,-1000.0,0.00023812,2]
[420397002,1776081034554,-661.3451527,0.00023818,2]
[420397003,1776081034563,-1942.6064,0.00023819,2]
[420397004,1776081034573,-2500.0,0.00023821,2]
[420397005,1776081034583,-22603.3782194,0.00023919,2]
[420397006,1776081034592,-167.09212908,0.00023921,2]
[420397007,1776081034604,-1481.11560875,0.00023921,2]
[420397008,1776081034614,-1000.0,0.00023956,2]
[420397009,1776081034623,-500.0,0.00023973,2]
[420397010,1776081034634,-500.0,0.00023973,2]
[420397011,1776081034647,-500.0,0.00023973,2]
[420397012,1776081034657,-48812.71538559,0.0002399,2]
[420397013,1776081034666,-2000.0,0.00024,2]
[420397014,1776081034678,-2730.0,0.00024,2]
[420397015,1776081034689,-204.52013133,0.00024011,2]
[420397016,1776081034698,-151.0,0.00024016,7]
[420397017,1776081034709,-178.411,0.00024017,2]
[420397018,1776081034718,-500.0,0.00024018,2]
[420397019,1776081034735,-500.0,0.00024018,2]
[420397020,1776081034746,-500.0,0.00024018,2]
[420397021,1776081034758,-474.61630897,0.00024018,2]
[420397022,1776081034773,-175.13877938,0.00024018,2]
[420397023,1776081034783,-500.0,0.00024018,2]
[420397024,1776081034798,-500.0,0.00024018,2]
[420397025,1776081034809,-150.0,0.00024018,2]
[420397026,1776081034846,-150.0,0.00024018,2]
[420397027,1776081034855,-883.65,0.00024018,2]
[420397028,1776081034908,-607.88244179,0.00024018,2]
[420397029,1776081034944,-465.64952824,0.00024018,2]
[420397030,1776081034988,-172.9660446,0.00024019,2]
[420397031,1776081035025,-56585.45280451,0.00024019,2]
[420397032,1776081035066,-17825.52167835,0.00024019,2]
[420397033,1776081035336,-9.04503607,0.00024019,2]
[420397037,1776081038243,-1179.20209092,0.00023921,2]
[420397038,1776081038417,-641.97933608,0.00023921,2]
[420397039,1776081038532,-766.39805676,0.00023921,2]
[420397062,1776081040651,-2393.93553302,0.00023921,2]
[420397066,1776081043397,-1131.9414888,0.00023921,2]
[420397075,1776081046409,-9928.53226288,0.00023921,2]
[420397076,1776081046434,-500.0,0.00024018,2]
[420397077,1776081046444,-500.0,0.00024018,2]
[420397078,1776081046454,-500.0,0.00024018,2]
[420397079,1776081046464,-500.0,0.00024018,2]
[420397080,1776081046481,-500.0,0.00024018,2]
[420397081,1776081046491,-561.62796752,0.00024018,2]
[420397082,1776081046500,-500.0,0.00024018,2]
[420397083,1776081046510,-500.0,0.00024018,2]
[420397084,1776081046523,-199.33416202,0.00024018,2]
[420397085,1776081046533,-500.0,0.00024018,2]
[420397086,1776081046543,-500.0,0.00024018,2]
[420397087,1776081046553,-500.0,0.00024018,2]
[420397088,1776081046565,-500.0,0.00024018,2]
[420397089,1776081046574,-500.0,0.00024018,2]
[420397090,1776081046586,-500.0,0.00024018,2]
[420397091,1776081046599,-500.0,0.00024018,2]
[420397092,1776081046614,-500.0,0.00024018,2]
[420397093,1776081046628,-500.0,0.00024018,2]
[420397094,1776081046639,-500.0,0.00024018,2]
[420397095,1776081046653,-500.0,0.00024018,2]
[420397096,1776081046669,-329.46870873,0.00024018,2]
[420397097,1776081046681,-336245.87063907,0.00024019,2]
[420397098,1776081046707,-25211.0339813,0.00024019,2]
[420397099,1776081046717,-500.0,0.00024019,2]
[420397100,1776081046743,-300.0,0.0002402,2]
[420397101,1776081046752,-33057.3911,0.00024021,2]
[420397102,1776081046771,-1000.0,0.00024021,2]
[420397103,1776081046782,-368144.3066,0.00024021,2]
[420397104,1776081046793,-487.0,0.00024021,2]
[420397105,1776081046807,-485.86,0.00024021,2]
[420397106,1776081046818,-151.0,0.00024021,2]
[420397107,1776081046835,-151.0,0.00024021,2]
[420397108,1776081046847,-152.367709,0.00024021,2]
[420397109,1776081046858,-430.95881578,0.00024021,2]
[420397110,1776081046870,-9685.186407,0.00024021,2]
[420397111,1776081046886,-9685.186407,0.00024021,2]
[420397112,1776081046896,-9685.186407,0.00024021,2]
[420397113,1776081046910,-9685.186407,0.00024021,2]
[420397114,1776081046925,-9685.186407,0.00024021,2]
[420397115,1776081046937,-9685.186407,0.00024021,2]
[420397116,1776081046948,-9685.186407,0.00024021,2]
[420397117,1776081046961,-9685.186407,0.00024021,2]
[420397118,1776081046975,-500.0,0.00024073,2]
[420397119,1776081046984,-500.0,0.00024073,2]
[420397120,1776081047001,-504.44932301,0.00024073,2]
[420397121,1776081047012,-6027.52,0.00024085,2]
[420397122,1776081047023,-151.0,0.00024118,7]
[420397123,1776081047037,-489.378,0.0002412,2]
[420397124,1776081047054,-503.5332702,0.0002412,2]
[420397125,1776081047065,-500.0,0.0002412,2]
[420397126,1776081047085,-215.27268675,0.0002412,2]
[420397127,1776081047117,-500.0,0.0002412,2]
[420397128,1776081047129,-500.0,0.0002412,2]
[420397129,1776081047151,-500.0,0.0002412,2]
[420397130,1776081047186,-500.0,0.0002412,2]
[420397131,1776081047201,-500.0,0.0002412,2]
[420397133,1776081047225,-500.0,0.0002412,2]
[420397135,1776081047259,-500.0,0.0002412,2]
[420397137,1776081047269,-500.0,0.0002412,2]
[420397139,1776081047290,-448.61353303,0.0002412,2]
[420397141,1776081047310,-500.0,0.0002412,2]
[420397143,1776081047330,-500.0,0.0002412,2]
[420397145,1776081047349,-500.0,0.0002412,2]
[420397147,1776081047361,-500.0,0.0002412,2]
[420397149,1776081047384,-500.0,0.0002412,2]
[420397151,1776081047393,-500.0,0.0002412,2]
[420397153,1776081047410,-634.77288001,0.0002412,2]
[420397155,1776081047425,-500.0,0.0002412,2]
[420397157,1776081047436,-500.0,0.0002412,2]
[420397159,1776081047452,-500.0,0.0002412,2]
[420397161,1776081047462,-500.0,0.0002412,2]
[420397163,1776081047474,-500.0,0.0002412,2]
[420397189,1776081047829,-500.0,0.0002412,2]
[420397192,1776081047857,-500.0,0.0002412,2]
[420397193,1776081047868,-500.0,0.0002412,2]
[420397195,1776081047878,-627.4298489,0.0002412,2]
[420397197,1776081047912,-500.0,0.0002412,2]
[420397199,1776081047923,-176.814701,0.00024128,14]
[420397201,1776081047945,-883.65,0.00024292,2]
[420397202,1776081047963,-265.222048,0.00024293,14]
[420397203,1776081047981,-180.5512,0.000243,2]
[420397204,1776081048008,-4000.0,0.00024307,2]
[420397205,1776081048019,-201.98,0.00024322,2]
[420397206,1776081048032,-22603.37821932,0.00024361,2]
[420397207,1776081048055,-174.648813,0.00024402,14]
[420397208,1776081048065,-282.104155,0.00024402,14]
[420397209,1776081048076,-1000.0,0.00024521,2]
[420397210,1776081048110,-1044.94025023,0.00024521,2]
[420397211,1776081048120,-155.04,0.00024565,2]
[420397212,1776081048133,-883.65,0.00024566,2]
[420397213,1776081048150,-167.09212902,0.00024584,2]
[420397214,1776081048160,-1000.0,0.00024621,2]
[420397215,1776081048174,-1000.0,0.00024621,2]
[420397216,1776081048197,-1273.0,0.0002463,2]
[420397217,1776081048207,-1273.0,0.0002463,2]
[420397218,1776081048217,-1427.0,0.0002463,2]
[420397219,1776081048234,-1427.0,0.0002463,2]
[420397220,1776081048250,-1913.5,0.0002463,2]
[420397221,1776081048262,-1913.5,0.0002463,2]
[420397222,1776081048275,-1416.85037571,0.0002463,2]
[420397223,1776081048292,-370.99999999,0.0002463,2]
[420397224,1776081048305,-1000.0,0.00024658,2]
[420397225,1776081048316,-184.15581869,0.00024658,2]
[420397226,1776081048337,-151.0,0.00024658,2]
[420397227,1776081048347,-151.0,0.00024658,2]
[420397228,1776081048362,-151.0,0.00024658,2]
[420397229,1776081048376,-151.0,0.00024658,2]
[420397230,1776081048392,-151.0,0.00024658,2]
[420397231,1776081048409,-151.0,0.00024658,2]
[420397232,1776081048421,-151.0,0.00024658,2]
[420397233,1776081048436,-151.0,0.00024658,2]
[420397234,1776081048450,-151.0,0.00024658,2]
[420397235,1776081048465,-151.0,0.00024658,2]
[420397236,1776081048482,-151.0,0.00024658,2]
[420397237,1776081048510,-151.0,0.00024658,2]
[420397238,1776081048520,-151.0,0.00024658,2]
[420397239,1776081048530,-151.0,0.00024658,2]
[420397240,1776081048549,-151.0,0.00024658,2]
[420397241,1776081048563,-151.0,0.00024658,2]
[420397242,1776081048574,-151.0,0.00024658,2]
[420397243,1776081048591,-151.0,0.00024658,2]
[420397244,1776081048605,-151.0,0.00024658,2]
[420397245,1776081048615,-151.0,0.00024658,2]
[420397246,1776081048627,-151.0,0.00024658,2]
[420397247,1776081048649,-3240.0,0.00024683,2]
[420397248,1776081048661,-192.823312,0.00024741,14]
[420397249,1776081048677,-166.66,0.00024753,2]
[420397250,1776081048694,-22603.37821932,0.00024804,2]
[420397251,1776081048705,-883.65,0.0002484,2]
[420397252,1776081048715,-9685.186407,0.000249,2]
[420397253,1776081048738,-468337.262244,0.000249,2]
[420397254,1776081048752,-9685.186407,0.000249,2]
[420397255,1776081048772,-9685.186407,0.000249,2]
[420397256,1776081048785,-9685.186407,0.000249,2]
[420397257,1776081048795,-839.92,0.00024912,2]
[420397258,1776081048806,-1680.0,0.00024925,2]
[420397259,1776081048820,-21232.53,0.00024933,2]
[420397260,1776081048833,-7597.1,0.00024967,2]
[420397261,1776081048843,-151.0,0.0002499,2]
[420397262,1776081048855,-151.0,0.0002499,2]
[420397263,1776081048870,-2740.62892163,0.00025,2]
[420397264,1776081048881,-430.0,0.00025,2]
[420397265,1776081048892,-677.65139343,0.00025031,2]
[420397266,1776081048914,-1500.0,0.00025068,2]
[420397267,1776081048924,-152.0,0.0002508,3]
[420397268,1776081048935,-156.73369052,0.0002508,3]
[420397269,1776081048953,-198.0866,0.000251,2]
[420397270,1776081048968,-883.65,0.00025114,2]
[420397271,1776081048979,-150.0,0.0002513,2]
[420397272,1776081049002,-150.0,0.0002513,2]
[420397273,1776081049015,-200.0,0.0002513,2]
[420397274,1776081049052,-150.0,0.0002513,2]
[420397275,1776081049072,-150.0,0.0002513,2]
[420397276,1776081049101,-208.58598823,0.0002513,2]
[420397277,1776081049112,-150.0,0.0002513,2]
[420397278,1776081049138,-200.0,0.0002513,2]
[420397279,1776081049149,-163.07121039,0.0002513,2]
[420397280,1776081049159,-500.0,0.00025168,2]
[420397281,1776081049177,-1500.0,0.00025168,2]
[420397282,1776081049187,-22603.37821932,0.00025246,2]
[420397283,1776081049197,-167.09212902,0.00025247,2]
[420397284,1776081049209,-5532.0,0.000253,3]
[420397285,1776081049224,-248.9,0.0002533,2]
[420397286,1776081049238,-151.0,0.00025347,5]
[420397287,1776081049252,-155.0,0.00025347,5]
[420397288,1776081049263,-883.65,0.00025388,2]
[420397289,1776081049275,-166.66,0.00025497,2]
[420397290,1776081049288,-277.00785488,0.000255,2]
[420397291,1776081049299,-155.0,0.00025527,5]
[420397292,1776081049311,-201.98,0.00025538,2]
[420397293,1776081049323,-1000.0,0.00025557,7]
[420397294,1776081049337,-500.0,0.00025596,2]
[420397295,1776081049348,-5532.0,0.000256,5]
[420397296,1776081049366,-187.36420703,0.00025616,2]
[420397297,1776081049377,-883.65,0.00025662,2]
[420397298,1776081049390,-22603.37821932,0.00025688,2]
[420397299,1776081049406,-965.06806733,0.00025716,2]
[420397300,1776081049417,-500.0,0.00025726,2]
[420397301,1776081049438,-217.3251,0.000259,2]
[420397302,1776081049453,-500.0,0.00025902,3]
[420397303,1776081049464,-167.09212902,0.00025911,2]
[420397304,1776081049481,-1481.11560873,0.00025911,2]
[420397305,1776081049500,-16041.98876846,0.00025911,2]
[420397306,1776081049513,-883.65,0.00025936,2]
[420397307,1776081049523,-310.0,0.00025996,10]
[420397308,1776081049538,-541.0,0.00025996,10]
[420397309,1776081049552,-174.89,0.00026,30]
[420397310,1776081049562,-176.2419,0.00026013,2]
[420397311,1776081049578,-839.92,0.00026045,2]
[420397312,1776081049604,-22603.37821932,0.00026131,2]
[420397313,1776081049615,-883.65,0.0002621,2]
[420397314,1776081049632,-3991.4641568,0.00026236,2]
[420397315,1776081049647,-9685.186407,0.00026236,2]
[420397316,1776081049663,-9685.186407,0.00026236,2]
[420397317,1776081049673,-9685.186407,0.00026236,2]
[420397318,1776081049688,-9685.186407,0.00026236,2]
[420397319,1776081049702,-166.66,0.0002624,2]
[420397320,1776081049712,-2000.0,0.00026253,2]
[420397321,1776081049734,-155.049,0.00026342,2]
[420397322,1776081049749,-577.482,0.00026342,2]
[420397323,1776081049759,-1817.584,0.00026342,2]
[420397324,1776081049770,-622.0,0.00026342,2]
[420397325,1776081049783,-1264.0,0.00026342,2]
[420397326,1776081049795,-2472.0,0.00026342,2]
[420397327,1776081049804,-6026.0,0.00026342,2]
[420397328,1776081049817,-163.47,0.00026395,2]
[420397329,1776081049831,-2000.0,0.000264,2]
[420397330,1776081049845,-155.0,0.00026419,2]
[420397331,1776081049856,-225.85,0.0002642,2]